bitfinex-derivatives/quotes_BTCF0:USTF0_20250207
["timestamp","ask_amount","ask_price","bid_price","bid_amount"]
[1738947295803,0.18177196,97806.0,97805.0,0.2043967]
[1738947296003,0.18277196,97806.0,97805.0,0.2043967]
[1738947296205,0.18277196,97806.0,97805.0,0.2053967]
[1738947297405,0.18277196,97806.0,97805.0,0.001]
[1738947297609,0.18277196,97806.0,97805.0,0.2053967]
[1738947298310,0.05086148,97806.0,97805.0,0.2053967]
[1738947298708,0.05086148,97806.0,97805.0,0.001]
[1738947300210,0.05086148,97806.0,97805.0,0.2053967]
[1738947301211,0.00115341,97806.0,97805.0,0.2053967]
[1738947301512,0.00115341,97806.0,97805.0,0.001]
[1738947301808,0.20554801,97806.0,97805.0,0.001]
[1738947302010,0.00115341,97806.0,97805.0,0.001]
[1738947302716,0.00115341,97806.0,97805.0,0.2053967]
[1738947303717,0.00115341,97806.0,97805.0,0.001]
[1738947305716,0.20554801,97806.0,97805.0,0.001]
[1738947305919,0.20554801,97806.0,97796.0,0.0101275]
[1738947306216,0.20554801,97806.0,97793.0,0.3608]
[1738947306217,0.2043973,97805.0,97793.0,0.3608]
[1738947306813,0.00115341,97806.0,97793.0,0.3608]
[1738947307009,0.00115341,97806.0,97804.0,0.3608]
[1738947307208,0.00115341,97806.0,97804.0,0.5651972]
[1738947307409,0.00415341,97806.0,97804.0,0.5651972]
[1738947307611,0.00715341,97806.0,97804.0,0.5651972]
[1738947308214,0.15102094,97805.0,97804.0,0.5651972]
[1738947308410,0.15102094,97805.0,97804.0,0.3618]
[1738947308810,0.15102094,97805.0,97804.0,0.5661988]
[1738947310110,0.15102094,97805.0,97804.0,0.3618]
[1738947310317,0.15102094,97805.0,97804.0,0.37209383]
[1738947311225,0.15102094,97805.0,97804.0,0.57549263]
[1738947311415,0.15102094,97805.0,97804.0,0.57749263]
[1738947311821,0.15202094,97805.0,97804.0,0.57749263]
[1738947312017,0.15202094,97805.0,97804.0,0.57549263]
[1738947312224,0.15502094,97805.0,97804.0,0.37109383]
[1738947312414,0.15502094,97805.0,97804.0,0.37209383]
[1738947312817,0.15502094,97805.0,97804.0,0.57649263]
[1738947313728,0.15502094,97805.0,97804.0,0.63421263]
[1738947313923,0.21079187,97816.0,97804.0,0.42981383]
[1738947314223,0.2043758,97815.0,97814.0,0.3608]
[1738947315223,0.21079187,97816.0,97814.0,0.3608]
[1738947315523,0.003,97815.0,97814.0,0.3608]
[1738947316620,0.2073758,97815.0,97814.0,0.3608]
[1738947316926,0.2063758,97815.0,97814.0,0.3608]
[1738947317228,0.2063758,97815.0,97814.0,0.3628]
[1738947317429,0.2043758,97815.0,97814.0,0.3628]
[1738947318233,0.2053758,97815.0,97814.0,0.3628]
[1738947318524,0.2073758,97815.0,97814.0,0.3608]
[1738947318738,0.2083758,97815.0,97814.0,0.3608]
[1738947319428,0.004,97815.0,97804.0,0.3608]
[1738947319635,0.2043967,97805.0,97804.0,0.3608]
[1738947320433,0.2043842,97811.0,97804.0,0.3608]
[1738947320821,0.003,97805.0,97804.0,0.5671988]
[1738947321021,0.003,97805.0,97804.0,0.3628]
[1738947321236,0.2073967,97805.0,97804.0,0.3628]
[1738947321527,0.2073967,97805.0,97804.0,0.3608]
[1738947321726,0.2073967,97805.0,97804.0,0.3618]
[1738947322121,0.2043967,97805.0,97804.0,0.3628]
[1738947323728,0.5651967,97805.0,97804.0,0.001]
[1738947323927,0.2044104,97799.0,97797.0,0.01008571]
[1738947324130,0.3608,97805.0,97790.0,0.12043003]
[1738947324326,0.3608,97805.0,97787.0,0.36095341]
[1738947324327,0.2044194,97795.0,97787.0,0.36095341]
[1738947324535,0.003,97805.0,97790.0,0.3608]
[1738947324740,0.00015341,97807.0,97806.0,0.2043946]
[1738947324921,0.1978,97839.0,97829.0,0.12043003]
[1738947325127,0.1978,97839.0,97830.0,0.3608]
[1738947325325,0.2043365,97834.0,97830.0,0.3608]
[1738947325729,0.4021277,97839.0,97830.0,0.3608]
[1738947325922,0.2043361,97835.0,97821.0,0.2043619]
[1738947326127,0.3608,97831.0,97822.0,0.00015332]
[1738947326330,0.2043444,97830.0,97822.0,0.00015332]
[1738947326527,0.3608,97831.0,97822.0,0.00015332]
[1738947326726,0.5651591,97823.0,97822.0,0.00015332]
[1738947327729,0.5651591,97823.0,97822.0,0.00115332]
[1738947328036,0.5661591,97823.0,97822.0,0.0004607]
[1738947328433,0.5651591,97823.0,97822.0,0.0004607]
[1738947328636,0.0510927,97818.0,97799.0,0.3608]
[1738947328938,0.2043958,97806.0,97792.0,0.01026056]
[1738947329138,0.3608,97811.0,97804.0,0.2043982]
[1738947329336,0.00015332,97809.0,97804.0,0.2043982]
[1738947329732,0.00015332,97809.0,97799.0,0.48123003]
[1738947329931,0.00015332,97809.0,97807.0,0.2043905]
[1738947330238,0.00015332,97809.0,97799.0,0.47083142]
[1738947330925,0.00015332,97809.0,97799.0,0.47283142]
[1738947331127,0.2043939,97807.0,97799.0,0.47283142]
[1738947331326,0.00015332,97809.0,97799.0,0.67723992]
[1738947331641,0.27608162,97808.0,97803.0,0.2044002]
[1738947331841,0.27608162,97808.0,97799.0,0.47283142]
[1738947332334,0.27608162,97808.0,97799.0,0.3628]
[1738947332741,0.2043984,97805.0,97799.0,0.3628]
[1738947332937,0.27608162,97808.0,97799.0,0.3628]
[1738947333541,0.48047312,97808.0,97799.0,0.3628]
[1738947333840,0.2043931,97807.0,97799.0,0.3628]
[1738947334138,0.27608162,97808.0,97799.0,0.5672083]
[1738947334440,0.002,97808.0,97799.0,0.5672083]
[1738947334641,0.002,97808.0,97802.0,0.2044025]
[1738947334936,0.002,97808.0,97799.0,0.3628]
[1738947335534,0.006,97808.0,97802.0,0.204401]
[1738947336041,0.006,97808.0,97799.0,0.3608]
[1738947336541,0.004,97808.0,97799.0,0.3608]
[1738947336732,0.006,97808.0,97799.0,0.3608]
[1738947337130,0.006,97808.0,97807.0,0.3608]
[1738947337336,0.004,97808.0,97807.0,0.5651925]
[1738947337537,0.006,97808.0,97807.0,0.5651925]
[1738947338044,0.005,97808.0,97807.0,0.5651925]
[1738947338427,0.002,97808.0,97807.0,0.5651925]
[1738947339239,0.00015332,97809.0,97808.0,0.2043904]
[1738947340939,0.00015332,97809.0,97808.0,0.2053904]
[1738947341738,0.08479594,97824.0,97823.0,0.2043591]
[1738947341941,0.00153412,97840.0,97838.0,0.2043265]
[1738947342144,0.00153412,97840.0,97839.0,0.7216]
[1738947343349,0.1902,97859.0,97839.0,0.7216]
[1738947343350,0.00092,97880.0,97839.0,0.73193578]
[1738947343537,0.0971,97887.0,97868.0,0.5650651]
[1738947344442,0.2042597,97871.0,97868.0,0.3608]
[1738947344642,0.2042586,97872.0,97868.0,0.3608]
[1738947344843,0.0974,97871.0,97868.0,0.3608]
[1738947345532,0.009,97869.0,97868.0,0.3618]
[1738947346141,0.1064,97871.0,97868.0,0.3608]
[1738947346337,0.1154,97871.0,97868.0,0.3618]
[1738947347044,0.009,97869.0,97868.0,0.001]
[1738947347547,0.213263,97869.0,97868.0,0.001]
[1738947348047,0.222263,97869.0,97868.0,0.001]
[1738947348250,0.23239251,97869.0,97868.0,0.001]
[1738947348849,0.22339251,97869.0,97868.0,0.001]
[1738947349746,0.23239251,97869.0,97868.0,0.001]
[1738947350048,0.018,97869.0,97868.0,0.001]
[1738947350443,0.018,97869.0,97868.0,0.3618]
[1738947350635,0.3608,97892.0,97868.0,0.3618]
[1738947350838,0.23574761,98039.0,97868.0,0.3618]
[1738947350839,0.00092,97960.0,97929.0,0.24824325]
[1738947351040,0.3708,98009.0,97869.0,0.63664]
[1738947351041,0.01024746,97962.0,97945.0,0.3608]
[1738947351249,0.39461657,97964.0,97954.0,0.3608]
[1738947351545,0.39365656,97964.0,97962.0,0.3608]
[1738947351934,0.4037576,97964.0,97956.0,0.3608]
[1738947352140,0.0986,97963.0,97953.0,0.00015315]
[1738947352356,0.21903003,97963.0,97957.0,0.3608]
[1738947352739,0.0986,97963.0,97957.0,0.3608]
[1738947352933,0.05756,97962.0,97957.0,0.3608]
[1738947353244,0.2040762,97959.0,97957.0,0.3608]
[1738947354148,0.2040774,97958.0,97950.0,0.00015315]
[1738947354346,0.2040976,97949.0,97923.0,0.3608]
[1738947354642,0.3608,97938.0,97923.0,0.3608]
[1738947355051,0.3608,97938.0,97930.0,0.2041345]
[1738947355439,0.3608,97938.0,97937.0,0.2041212]
[1738947355947,0.003,97938.0,97937.0,0.2041212]
[1738947356456,0.002,97938.0,97937.0,0.5649212]
[1738947356749,0.00015315,97944.0,97943.0,0.2041087]
[1738947358350,0.00415315,97944.0,97943.0,0.2041087]
[1738947358546,0.00415315,97944.0,97934.0,0.2616473]
[1738947358850,0.3608,97935.0,97920.0,0.00056]
[1738947359047,0.3608,97921.0,97906.0,0.3608]
[1738947359350,0.3608,97921.0,97906.0,0.37108846]
[1738947359539,0.3608,97909.0,97900.0,0.18020183]
[1738947359739,0.3608,97909.0,97893.0,0.05752]
[1738947359952,0.3608,97901.0,97893.0,0.01000493]
[1738947360147,0.3608,97901.0,97891.0,0.00015315]
[1738947360837,0.3608,97909.0,97891.0,0.00015315]
[1738947361040,0.3608,97909.0,97899.0,0.18020183]
[1738947361438,0.3608,97909.0,97908.0,0.2041817]
[1738947361643,0.00015315,97911.0,97910.0,0.2041775]
[1738947362952,0.00515315,97911.0,97910.0,0.2041775]
[1738947363457,0.00515315,97911.0,97910.0,0.06764549]
[1738947364647,0.00515315,97911.0,97904.0,0.05748]
[1738947364855,0.00515315,97911.0,97903.0,0.3608]
[1738947365845,0.00115315,97911.0,97903.0,0.3608]
[1738947366357,0.00115315,97911.0,97908.0,0.2041808]
[1738947367146,0.00115315,97911.0,97910.0,0.2041781]
[1738947367351,1e-08,97911.0,97910.0,0.2041781]
[1738947367955,0.3608,97938.0,97923.0,0.20415]
[1738947368156,0.3608,97938.0,97924.0,0.18020183]
[1738947368456,0.3608,97950.0,97942.0,0.2041106]
[1738947368753,0.00015315,97939.0,97938.0,0.2041196]
[1738947368953,0.3608,97950.0,97949.0,0.2040967]
[1738947369746,0.3608,97950.0,97941.0,0.2041128]
[1738947370153,0.3608,97950.0,97940.0,0.18020183]
[1738947370349,0.3608,97941.0,97938.0,0.001]
[1738947370549,0.2041175,97939.0,97938.0,0.001]
[1738947371050,0.2101175,97939.0,97938.0,0.001]
[1738947371557,0.006,97941.0,97938.0,0.001]
[1738947371859,0.006,97941.0,97939.0,0.2041175]
[1738947372062,0.006,97941.0,97936.0,0.00015315]
[1738947372063,0.3608,97949.0,97946.0,0.2041026]
[1738947372260,0.3608,97949.0,97939.0,0.18020183]
[1738947372556,0.3608,97960.0,97939.0,0.18020183]
[1738947372748,0.006,97941.0,97939.0,0.38431853]
[1738947372949,0.006,97941.0,97939.0,0.2041167]
[1738947373153,0.007,97941.0,97939.0,0.2131167]
[1738947374460,0.001,97941.0,97939.0,0.2181167]
[1738947374656,0.3608,97951.0,97939.0,0.2181167]
[1738947374657,0.3608,97951.0,97949.0,0.2040952]
[1738947374862,0.3608,97960.0,97954.0,0.2040862]
[1738947376063,0.3608,97960.0,97950.0,0.05744]
[1738947376264,0.3608,97960.0,97954.0,0.002]
[1738947376766,0.2040762,97959.0,97954.0,0.002]
[1738947376952,0.3608,97960.0,97954.0,0.002]
[1738947377862,0.2040761,97959.0,97954.0,0.002]
[1738947378156,0.3608,97960.0,97954.0,0.002]
[1738947378556,0.3608,97960.0,97950.0,0.004]
[1738947379064,0.2040809,97957.0,97950.0,0.004]
[1738947379265,0.3608,97960.0,97947.0,0.05744]
[1738947379460,0.204083,97956.0,97954.0,0.001]
[1738947379656,0.41839315,97955.0,97910.0,0.18020183]
[1738947379854,0.7216,97935.0,97923.0,8e-08]
[1738947380059,0.7216,97935.0,97898.0,0.33814719]
[1738947380060,0.3608,97924.0,97898.0,0.33814719]
[1738947380262,0.3608,97899.0,97877.0,0.3608]
[1738947380458,0.3608,97899.0,97889.0,0.18020183]
[1738947380658,0.3608,97906.0,97890.0,0.2042182]
[1738947380961,0.00015324,97904.0,97896.0,0.2042066]
[1738947381164,0.00015324,97904.0,97894.0,0.2042095]
[1738947381363,0.00015324,97904.0,97903.0,0.5649925]
[1738947381557,0.0015328,97923.0,97903.0,0.4182]
[1738947381869,0.2041714,97914.0,97904.0,0.0574]
[1738947382072,0.2041714,97914.0,97898.0,0.2042017]
[1738947382367,0.2041603,97919.0,97904.0,0.2041894]
[1738947382761,0.2041603,97919.0,97904.0,0.2615894]
[1738947382953,0.2041603,97919.0,97905.0,0.2041874]
[1738947383156,0.3608,97911.0,97906.0,0.2041856]
[1738947383953,0.3608,97911.0,97905.0,0.2041883]
[1738947384157,0.3608,97911.0,97909.0,0.20418]
[1738947384368,0.001,97914.0,97909.0,0.20418]
[1738947384567,0.001,97914.0,97912.0,0.2041734]
[1738947384765,0.45932001,97920.0,97912.0,0.2041734]
[1738947384969,0.001,97919.0,97914.0,0.2041685]
[1738947385557,0.45928001,97920.0,97914.0,0.2041685]
[1738947385758,0.4582,97920.0,97914.0,0.2041685]
[1738947386370,0.4582,97920.0,97914.0,0.2061685]
[1738947386764,0.4582,97920.0,97918.0,0.2041595]
[1738947387572,0.00015324,97921.0,97918.0,0.2041595]
[1738947387573,0.00015324,97921.0,97920.0,0.2041571]
[1738947387863,1e-08,97921.0,97920.0,0.2041571]
[1738947388466,0.15118955,97937.0,97920.0,0.91128]
[1738947388771,0.15118955,97937.0,97936.0,0.2041237]
[1738947389866,0.15118955,97937.0,97936.0,0.2615237]
[1738947390265,0.15118955,97937.0,97936.0,0.2041237]
[1738947391274,0.3608,97940.0,97938.0,0.2041185]
[1738947392363,0.3608,97940.0,97933.0,0.38702579]
[1738947392761,0.3608,97940.0,97936.0,0.2041236]
[1738947393159,0.3618,97940.0,97936.0,0.2041236]
[1738947394574,0.3618,97940.0,97932.0,0.05736]
[1738947395967,0.3608,97940.0,97932.0,0.05736]
[1738947396170,0.3618,97940.0,97935.0,0.2041251]
[1738947396369,0.3618,97940.0,97938.0,0.204118]
[1738947397069,0.3618,97940.0,97932.0,0.2614918]
[1738947397574,0.3618,97940.0,97933.0,0.2041298]
[1738947398162,0.3618,97940.0,97932.0,0.05736]
[1738947398369,0.3618,97940.0,97939.0,0.2041175]
[1738947398975,0.001,97940.0,97939.0,0.2041175]
[1738947399175,0.001,97940.0,97937.0,0.2041208]
[1738947399376,0.3608,97941.0,97937.0,0.2041208]
[1738947399578,0.001,97940.0,97931.0,0.0931]
[1738947400177,0.001,97940.0,97936.0,0.204123]
[1738947400378,0.001,97940.0,97931.0,0.0931]
[1738947400980,0.001,97940.0,97935.0,0.2041253]
[1738947402368,0.3608,97941.0,97935.0,0.2041253]
[1738947402569,0.001,97940.0,97935.0,0.2041253]
[1738947402876,0.001,97940.0,97939.0,0.2041175]
[1738947403572,0.3618,97941.0,97939.0,0.2041175]
[1738947403772,0.3638,97941.0,97939.0,0.2041175]
[1738947404272,0.2041263,97935.0,97923.0,0.2041501]
[1738947404474,0.5649404,97928.0,97920.0,0.00056]
[1738947404776,0.3608,97928.0,97916.0,0.18289629]
[1738947404970,0.5649633,97917.0,97916.0,0.18289629]
[1738947405567,0.2041901,97905.0,97895.0,0.2042084]
[1738947405877,0.3608,97899.0,97894.0,0.4247675]
[1738947406181,0.5650053,97897.0,97894.0,0.37553651]
[1738947406773,0.2042092,97895.0,97894.0,0.3674475]
[1738947407081,0.2042092,97895.0,97894.0,0.3724475]
[1738947407280,0.3608,97897.0,97874.0,0.51831575]
[1738947407577,0.3608,97879.0,97874.0,0.51831575]
[1738947407774,0.3608,97879.0,97878.0,0.42882214]
[1738947408181,0.3608,97879.0,97878.0,0.63306684]
[1738947408473,0.00108001,97881.0,97880.0,0.2042405]
[1738947408675,0.00015324,97888.0,97887.0,0.2042259]
[1738947409173,0.001,97879.0,97878.0,0.43834214]
[1738947409381,0.002,97879.0,97878.0,0.02293538]
[1738947409876,0.3608,97883.0,97878.0,0.00793538]
[1738947410065,0.5650351,97883.0,97869.0,0.00015324]
[1738947410679,0.00115324,97888.0,97869.0,0.00015324]
[1738947410680,0.3608,97870.0,97869.0,0.00015324]
[1738947411870,0.6608,97870.0,97850.0,0.06]
[1738947412075,0.3608,97851.0,97850.0,0.06]
[1738947412372,0.7216,97851.0,97850.0,0.06]
[1738947413178,0.7216,97851.0,97850.0,0.065]
[1738947413380,0.7216,97851.0,97850.0,0.067]
[1738947413681,0.3608,97851.0,97850.0,0.067]
[1738947415275,0.3608,97851.0,97850.0,0.062]
[1738947415585,0.3608,97851.0,97850.0,0.067]
[1738947419690,0.3608,97851.0,97850.0,0.2713031]
[1738947419984,0.54222746,97896.0,97850.0,0.47602688]
[1738947420287,0.18250747,97896.0,97887.0,0.3608]
[1738947420478,0.18142746,97896.0,97888.0,0.2615438]
[1738947420783,0.15118955,97898.0,97897.0,0.204205]
[1738947420980,0.15118955,97898.0,97897.0,0.565005]
[1738947421381,0.00015324,97907.0,97897.0,0.3608]
[1738947421581,0.00015324,97907.0,97906.0,0.5649862]
[1738947421780,0.00015324,97907.0,97906.0,0.6223062]
[1738947423184,0.00153263,97920.0,97919.0,0.2041591]
[1738947423388,0.51045527,97940.0,97919.0,0.3608]
[1738947423583,0.51157528,97940.0,97920.0,0.38435833]
[1738947423885,0.2041183,97939.0,97921.0,0.05732]
[1738947424277,0.36192001,97946.0,97919.0,0.3608]
[1738947424278,0.204144,97927.0,97920.0,0.00015324]
[1738947424592,0.3608,97938.0,97920.0,0.00015324]
[1738947424793,0.00015324,97940.0,97935.0,0.2041237]
[1738947425086,0.00015324,97940.0,97933.0,0.3608]
[1738947425585,0.00015324,97940.0,97939.0,0.3608]
[1738947426173,0.00115324,97940.0,97939.0,0.3608]
[1738947426590,0.00153202,97959.0,97939.0,0.4657]
[1738947426792,0.00153202,97959.0,97955.0,0.3608]
[1738947427679,0.0994,97988.0,97955.0,0.3608]
[1738947427881,0.0994,97988.0,97977.0,0.3608]
[1738947428087,0.0036,97986.0,97977.0,0.3608]
[1738947428290,0.0036,97986.0,97977.0,0.5648374]
[1738947428488,0.0036,97986.0,97977.0,0.3608]
[1738947428791,0.0036,97986.0,97972.0,0.00015316]
[1738947428985,0.2040317,97981.0,97972.0,0.00015316]
[1738947429593,0.0066,97986.0,97972.0,0.20419976]
[1738947429789,0.0066,97986.0,97981.0,0.3608]
[1738947429983,0.0106,97986.0,97981.0,0.3608]
[1738947430578,0.0066,97986.0,97981.0,0.3608]
[1738947430783,0.2040272,97983.0,97981.0,0.3608]
[1738947431683,0.0076,97986.0,97981.0,0.3608]
[1738947431899,0.0106,97986.0,97981.0,0.3608]
[1738947432379,0.0106,97986.0,97984.0,0.2040228]
[1738947432580,0.0036,97986.0,97984.0,0.2040228]
[1738947433386,0.0076,97986.0,97984.0,0.2040228]
[1738947433895,0.0036,97986.0,97984.0,0.2040228]
[1738947434193,0.0076,97986.0,97984.0,0.2040228]
[1738947434490,0.203963,98014.0,97994.0,0.2040021]
[1738947434796,0.203963,98014.0,97999.0,0.3608]
[1738947435182,0.00818925,98015.0,97999.0,0.3608]
[1738947435383,0.203969,98011.0,97999.0,0.3608]
[1738947435590,0.00818925,98015.0,97999.0,0.3608]
[1738947435591,0.2039752,98008.0,97999.0,0.3608]
[1738947435786,0.117,98000.0,97999.0,0.3608]
[1738947436396,0.117,98000.0,97999.0,0.3618]
[1738947437281,0.109,98000.0,97999.0,0.001]
[1738947437482,0.114,98000.0,97999.0,0.002]
[1738947443184,0.12231299,98000.0,97999.0,0.002]
[1738947444389,0.3179904,98000.0,97999.0,0.2059924]
[1738947444596,0.114,98000.0,97999.0,0.2059924]
[1738947444793,0.114,98000.0,97999.0,0.5667924]
[1738947444993,0.2201,98032.0,97999.0,0.3628]
[1738947445191,0.203924,98032.0,98019.0,0.2039508]
[1738947445586,0.3608,98035.0,98019.0,0.2039508]
[1738947445587,0.5647188,98035.0,98019.0,0.2039508]
[1738947445793,0.2039266,98031.0,98019.0,0.2039508]
[1738947445999,0.38354461,98030.0,98019.0,0.2039508]
[1738947446194,0.17961601,98030.0,98016.0,0.3608]
[1738947446399,0.17961601,98030.0,98019.0,0.2039508]
[1738947446596,0.00553111,98020.0,98019.0,0.2039508]
[1738947446796,0.00653111,98020.0,98019.0,0.2039508]
[1738947446991,0.00253111,98020.0,98019.0,0.2039508]
[1738947447201,0.00753111,98020.0,98019.0,0.2039508]
[1738947447401,0.00653111,98020.0,98016.0,0.3608]
[1738947447592,0.00753111,98020.0,98016.0,0.3608]
[1738947447902,0.00753111,98020.0,98016.0,0.36880791]
[1738947448198,0.00753111,98020.0,98018.0,0.2039519]
[1738947448401,0.00757815,98020.0,98018.0,0.2039519]
[1738947449302,0.00257815,98020.0,98016.0,0.36880791]
[1738947449503,0.00257815,98020.0,98016.0,0.29865258]
[1738947449706,0.00257815,98020.0,98016.0,0.29064467]
[1738947450201,0.203955,98017.0,98016.0,0.29064467]
[1738947451498,0.3608,98017.0,98010.0,0.00015307]
[1738947451793,0.2039665,98012.0,98010.0,5.588e-05]
[1738947451993,0.3608,98017.0,97986.0,0.05712]
[1738947451994,0.094,98011.0,97986.0,0.05712]
[1738947452309,0.094,98011.0,97990.0,0.18020183]
[1738947452310,0.2039932,97999.0,97990.0,0.18020183]
[1738947452603,0.2039932,97999.0,97996.0,0.3608]
[1738947454106,0.094,98011.0,97996.0,0.3608]
[1738947454509,0.2039706,98010.0,97996.0,0.3608]
[1738947454808,0.10201359,98011.0,97996.0,0.3608]
[1738947455008,0.2040033,97994.0,97990.0,0.18720183]
[1738947455204,0.2040033,97994.0,97990.0,0.18020183]
[1738947455400,0.2040071,97992.0,97990.0,0.18020183]
[1738947455703,0.2040071,97992.0,97988.0,0.00015307]
[1738947455897,0.00015307,98002.0,97988.0,0.00015307]
[1738947456098,0.2040117,97990.0,97988.0,0.00015307]
[1738947456307,0.2039993,97996.0,97988.0,0.00015307]
[1738947456605,0.2040015,97995.0,97988.0,0.00015307]
[1738947457008,0.2040053,97993.0,97988.0,0.00115307]
[1738947457210,0.2040114,97990.0,97988.0,0.00915307]
[1738947457508,0.2040114,97990.0,97984.0,0.15123445]
[1738947457703,0.2040445,97974.0,97972.0,0.00056]
[1738947457895,0.2040519,97971.0,97965.0,0.2040626]
[1738947458101,0.3608,97988.0,97972.0,0.2040473]
[1738947458411,0.2040226,97985.0,97980.0,0.2040311]
[1738947458602,0.00015307,97987.0,97983.0,0.3608]
[1738947458801,0.00015307,97987.0,97985.0,0.2040207]
[1738947459505,0.00015307,97987.0,97983.0,0.3608]
[1738947459709,0.2040218,97985.0,97978.0,0.18020183]
[1738947459901,0.2040218,97985.0,97978.0,0.18855755]
[1738947460102,0.2040238,97984.0,97978.0,0.39259205]
[1738947460601,0.2040238,97984.0,97983.0,0.003]
[1738947461205,0.00015307,97987.0,97983.0,0.003]
[1738947461409,0.00015307,97987.0,97986.0,0.2040195]
[1738947462607,0.00015307,97987.0,97983.0,0.0938]
[1738947462801,0.00015307,97987.0,97983.0,0.0958]
[1738947463109,0.00015307,97987.0,97983.0,0.002]
[1738947463110,0.2040237,97984.0,97983.0,0.002]
[1738947463703,0.00215307,97987.0,97983.0,0.005]
[1738947464012,0.00015307,97987.0,97986.0,0.2040195]
[1738947465702,0.00015307,97987.0,97986.0,0.5648195]
[1738947465910,0.15187006,98009.0,97986.0,0.3608]
[1738947466110,0.15187006,98009.0,98003.0,0.3608]
[1738947466315,0.18224407,98015.0,98004.0,0.05708]
[1738947466616,0.3608,98041.0,98014.0,0.3608]
[1738947466811,0.3608,98041.0,98020.0,0.18020183]
[1738947467116,0.2039392,98025.0,98021.0,0.00015307]
[1738947467506,0.3608,98033.0,98021.0,0.00015307]
[1738947467811,0.2039438,98023.0,98021.0,0.00015307]
[1738947469415,0.2049438,98023.0,98021.0,0.00015307]
[1738947469713,0.001,98023.0,98022.0,0.2039446]
[1738947470115,0.00015307,98040.0,98021.0,0.00015307]
[1738947470325,0.00015307,98040.0,98038.0,0.2039104]
[1738947471221,0.00015307,98040.0,98031.0,0.2039244]
[1738947471411,0.00715307,98040.0,98030.0,0.18865108]
[1738947471612,0.00715307,98040.0,98038.0,0.2039099]
[1738947471812,0.00715307,98040.0,98030.0,0.18865108]
[1738947472012,0.00715307,98040.0,98033.0,0.2039213]
[1738947472312,0.00715307,98040.0,98030.0,0.18865108]
[1738947472509,0.2039298,98030.0,98028.0,0.3608]
[1738947472715,0.2039436,98023.0,98021.0,0.00115307]
[1738947473021,0.3608,98035.0,98021.0,0.00115307]
[1738947473222,0.2039366,98026.0,98021.0,0.00115307]
[1738947473411,0.2039271,98031.0,98021.0,0.20509937]
[1738947473615,0.3608,98035.0,98021.0,0.00015307]
[1738947473822,0.2039437,98023.0,98021.0,0.00015307]
[1738947475420,0.2039437,98023.0,98021.0,0.00115307]
[1738947476615,0.3608,98022.0,98021.0,0.00115307]
[1738947476816,0.2039779,98006.0,98005.0,0.00153048]
[1738947477414,0.0973,98021.0,98005.0,0.00153048]
[1738947477608,0.0973,98021.0,98010.0,0.18020183]
[1738947477810,0.2039476,98021.0,98016.0,0.2039563]
[1738947478221,0.36095307,98025.0,98010.0,0.54152183]
[1738947478517,0.2039536,98018.0,98010.0,0.74497003]
[1738947478719,0.2039609,98015.0,98010.0,0.74597003]
[1738947478918,0.2039609,98015.0,98010.0,0.37052639]
[1738947479124,0.008,98021.0,98019.0,0.2039507]
[1738947479424,0.008,98021.0,98020.0,0.3608]
[1738947479723,0.00015307,98025.0,98020.0,0.3608]
[1738947479929,0.00015307,98025.0,98024.0,0.2039404]
[1738947480311,0.2038946,98047.0,98020.0,0.3608]
[1738947480520,0.203889,98049.0,98037.0,0.23985568]
[1738947480720,0.37055184,98052.0,98039.0,0.17976008]
[1738947481024,0.41407425,98050.0,98039.0,0.17976008]
[1738947481316,0.21018625,98050.0,98039.0,0.17976008]
[1738947481519,0.2038928,98047.0,98039.0,0.17976008]
[1738947481716,0.21018625,98050.0,98039.0,0.17976008]
[1738947481921,0.2039071,98040.0,98039.0,0.17976008]
[1738947482124,0.3608,98043.0,98035.0,0.00015299]
[1738947482717,0.2039075,98040.0,98037.0,0.001]
[1738947482919,0.3608,98043.0,98037.0,0.001]
[1738947483319,0.3618,98043.0,98035.0,0.00115299]
[1738947483722,0.5657016,98043.0,98035.0,0.00115299]
[1738947483912,0.001,98040.0,98035.0,0.00015299]
[1738947484427,0.56678161,98043.0,98035.0,0.20506929]
[1738947484630,0.5657016,98043.0,98035.0,0.20506929]
[1738947485020,0.3618,98043.0,98035.0,0.00115299]
[1738947485226,0.001,98043.0,98042.0,0.3608]
[1738947486426,0.04959106,98049.0,98042.0,0.3608]
[1738947486823,0.04959106,98049.0,98048.0,0.3608]
[1738947487018,0.24021285,98071.0,98064.0,0.2038572]
[1738947487326,0.27024242,98078.0,98064.0,0.3608]
[1738947487327,0.21244581,98069.0,98064.0,0.3608]
[1738947487526,0.21244581,98069.0,98062.0,0.2038612]
[1738947487726,0.21244581,98069.0,98067.0,0.20385]
[1738947488329,0.21244581,98069.0,98059.0,0.3608]
[1738947488536,0.2038669,98060.0,98058.0,0.00015299]
[1738947489029,0.2038669,98060.0,98038.0,0.3608]
[1738947489030,0.3608,98062.0,98038.0,0.3608]
[1738947489226,0.2038941,98047.0,98042.0,0.00152991]
[1738947489425,0.3608,98062.0,98042.0,0.00152991]
[1738947489631,0.2038674,98060.0,98050.0,0.17976008]
[1738947489821,0.001,98060.0,98055.0,0.3608]
[1738947490025,0.001,98060.0,98059.0,0.2038676]
[1738947490327,0.21444581,98069.0,98055.0,0.3608]
[1738947490328,0.00015299,98067.0,98055.0,0.3608]
[1738947490532,0.00015299,98067.0,98055.0,0.5646746]
[1738947490732,0.2038567,98065.0,98055.0,0.3608]
[1738947490939,0.2038567,98065.0,98055.0,0.5646753]
[1738947491127,0.2038616,98062.0,98055.0,0.3608]
[1738947491435,0.00015299,98067.0,98048.0,0.00015299]
[1738947491436,0.2038713,98058.0,98048.0,0.00015299]
[1738947491737,0.3608,98063.0,98048.0,0.38380277]
[1738947492129,0.001,98060.0,98048.0,0.38380277]
[1738947492433,0.2038709,98058.0,98048.0,0.38380277]
[1738947492630,0.001,98062.0,98057.0,0.3608]
[1738947492835,0.001,98058.0,98057.0,0.3608]
[1738947493332,0.001,98060.0,98057.0,0.3608]
[1738947494030,0.001,98060.0,98058.0,0.2038686]
[1738947494427,0.002,98063.0,98058.0,0.2038686]
[1738947494639,0.00015299,98067.0,98058.0,0.2038686]
[1738947494824,0.00015299,98067.0,98061.0,0.203862]
[1738947495132,0.00015299,98067.0,98057.0,0.54108008]
[1738947495328,0.00015299,98067.0,98058.0,0.2038692]
[1738947495527,0.001,98063.0,98058.0,0.2038692]